bitfinex/quotes_ETHUSD_20240927
["timestamp","ask_amount","ask_price","bid_price","bid_amount"]
[1727423736842,4.50986887,2667.4,2666.8,3.74969]
[1727423737010,4.50986887,2667.4,2666.9,3.74967]
[1727423737654,0.76089887,2667.4,2666.9,3.74967]
[1727423737947,0.45097389,2667.3,2666.9,3.74967]
[1727423738148,0.80191407,2667.0,2666.9,3.74967]
[1727423738744,0.80191407,2667.0,2666.8,3.74976]
[1727423738944,0.80191407,2667.0,2666.7,3.74993]
[1727423739248,0.80191407,2667.0,2666.8,0.55]
[1727423739813,0.80191407,2667.0,2666.8,4.29979]
[1727423740454,0.80191407,2667.0,2666.8,0.55]
[1727423740838,0.80191407,2667.0,2666.5,3.0]
[1727423741080,0.80191407,2667.0,2666.2,3.75053]
[1727423741081,0.7994,2666.7,2666.2,3.75053]
[1727423741218,3.75694407,2667.0,2666.1,3.75079]
[1727423741219,0.7994,2666.2,2666.1,3.75079]
[1727423742455,0.7994,2666.2,2666.1,7.30079]
[1727423746245,0.7994,2666.2,2666.1,3.55]
[1727423747745,0.7994,2666.2,2666.1,0.55]
[1727423750140,0.7994,2666.2,2666.1,7.30079]
[1727423766769,0.00741407,2666.3,2666.2,3.75065]
[1727423766974,0.00741407,2666.3,2666.2,7.30065]
[1727423768486,0.00741407,2666.3,2666.2,9.04268971]
[1727423768782,0.00741407,2666.3,2666.2,10.7046315]
[1727423771848,0.00741407,2666.3,2666.2,9.04268971]
[1727423781872,0.00741407,2666.3,2666.2,7.30065]
[1727423784965,0.00741407,2666.3,2666.2,3.55]
[1727423785165,0.00741407,2666.3,2666.2,7.30065]
[1727423785364,0.00741407,2666.3,2666.2,3.55]
[1727423786588,0.8109,2666.2,2666.1,0.55]
[1727423791500,0.8109,2666.2,2666.1,2.29203971]
[1727423791993,0.8109,2666.2,2666.1,9.04282971]
[1727423792203,0.8109,2666.2,2666.1,7.30079]
[1727423795393,0.8109,2666.2,2666.1,9.04282971]
[1727423795600,0.00741407,2666.3,2666.1,9.04282971]
[1727423796188,0.00741407,2666.3,2666.2,3.75065]
[1727423796399,0.00741407,2666.3,2666.2,4.30065]
[1727423797263,0.76251407,2666.3,2665.3,1.56730051]
[1727423797586,3.0,2667.2,2665.3,4.22048593]
[1727423797587,0.00741407,2665.4,2665.3,4.22048593]
[1727423797764,0.00741407,2665.4,2665.3,3.75192]
[1727423798797,0.00741407,2665.4,2665.3,7.30192]
[1727423820838,0.82461407,2665.4,2665.3,6.75192]
[1727423822452,0.82461407,2665.4,2665.3,4.30192]
[1727423824357,0.00741407,2665.4,2665.3,6.04395971]
[1727423825223,0.00741407,2665.4,2665.3,9.04395971]
[1727423827127,0.00741407,2665.4,2665.3,7.30192]
[1727423827927,0.00741407,2665.4,2665.3,9.04395971]
[1727423830035,0.00741407,2665.4,2665.3,7.30192]
[1727423830827,0.00741407,2665.4,2665.3,10.69876768]
[1727423834079,0.00741407,2665.4,2665.3,7.30192]
[1727423834080,0.77381407,2665.4,2665.3,7.30192]
[1727423836375,0.77381407,2665.4,2665.3,6.75192]
[1727423837086,0.77381407,2665.4,2665.1,3.75206]
[1727423837588,0.77381407,2665.4,2665.2,0.55]
[1727423840081,0.77381407,2665.4,2665.2,3.75202]
[1727423840285,0.77381407,2665.4,2665.1,3.75206]
[1727423843589,0.77381407,2665.4,2665.0,3.55]
[1727423843763,0.7772,2665.3,2665.0,3.55]
[1727423843965,0.00741407,2665.1,2665.0,7.30234]
[1727423844367,0.00741407,2665.1,2665.0,3.55]
[1727423844859,0.00741407,2665.1,2665.0,7.30234]
[1727423846654,0.00741407,2665.1,2665.0,3.55]
[1727423846892,0.00741407,2665.1,2665.0,7.30234]
[1727423847290,0.00741407,2665.1,2665.0,3.55]
[1727423848252,0.00741407,2665.1,2665.0,4.30234]
[1727423848481,0.00741407,2665.1,2665.0,7.30234]
[1727423850865,0.00741407,2665.1,2665.0,0.55]
[1727423851088,0.00741407,2665.1,2664.9,4.30246]
[1727423856674,0.00741407,2665.1,2664.8,3.0]
[1727423856675,0.764,2665.0,2664.8,3.0]
[1727423856994,0.00741407,2664.9,2664.8,3.0]
[1727423859432,0.00741407,2664.9,2664.8,8.22887997]
[1727423860827,0.00741407,2664.9,2664.8,4.47625997]
[1727423861328,0.00741407,2664.9,2664.8,8.22887997]
[1727423862233,0.00741407,2664.9,2664.7,3.0]
[1727423863126,0.00741407,2664.9,2664.6,3.55]
[1727423863507,0.00741407,2664.9,2664.6,7.30287]
[1727423863711,0.00741407,2664.9,2664.6,3.55]
[1727423864316,0.00741407,2664.9,2664.6,7.30287]
[1727423864739,0.00741407,2664.9,2664.6,3.55]
[1727423865396,0.00741407,2664.9,2664.6,7.30286]
[1727423866132,0.7858,2664.8,2664.6,0.55]
[1727423866348,3.76026407,2664.7,2664.1,3.75357]
[1727423866525,3.76026407,2664.7,2664.2,3.75346]
[1727423866526,0.7858,2664.6,2664.2,3.75346]
[1727423866706,0.00741407,2664.3,2664.2,3.75346]
[1727423867437,0.00741407,2664.3,2664.2,3.0]
[1727423868249,0.00741407,2664.3,2664.1,3.75359]
[1727423868250,0.00741407,2664.3,2664.1,3.0]
[1727423868617,0.00741407,2664.3,2664.2,0.55]
[1727423870024,4.55014407,2664.3,2663.7,3.75416]
[1727423870218,3.0,2665.4,2663.8,3.75403]
[1727423870219,1.24441441,2664.2,2663.8,3.75403]
[1727423870419,0.00741407,2663.9,2663.8,3.75403]
[1727423871510,0.00741407,2663.9,2663.8,7.30403]
[1727423874017,0.83851407,2663.9,2663.2,0.88440438]
[1727423874246,0.83851407,2663.9,2663.3,3.7547]
[1727423874247,0.8311,2663.9,2663.3,3.7547]
[1727423874551,3.75404,2663.8,2663.2,0.88440438]
[1727423874757,4.212554,2663.8,2663.2,0.88440438]
[1727423875050,0.458514,2663.8,2663.2,4.63925438]
[1727423875363,0.458514,2663.8,2663.3,3.0]
[1727423875555,0.458514,2663.8,2663.3,3.55]
[1727423875848,0.458514,2663.8,2663.3,0.55]
[1727423876058,0.8288,2663.7,2663.3,0.55]
[1727423879030,0.8288,2663.7,2663.2,0.88440438]
[1727423880667,0.8001,2663.6,2663.2,0.88440438]
[1727423881330,0.8001,2664.2,2663.5,0.55]
[1727423881534,0.8001,2664.2,2664.1,3.75361]
[1727423881728,3.75199,2665.3,2664.0,0.55]
[1727423881729,0.8291,2664.4,2664.0,0.55]
[1727423882330,0.8291,2664.4,2664.0,4.30375]
[1727423882331,0.00741407,2664.1,2664.0,4.30375]
[1727423882538,0.00741407,2664.1,2664.0,5.109504]
[1727423882740,0.00741407,2664.1,2664.0,8.938204]
[1727423884144,0.00741407,2664.4,2664.3,4.30333]
[1727423884351,0.00741407,2664.4,2664.3,7.30333]
[1727423884552,0.00741407,2664.4,2664.3,9.08672358]
[1727423897498,0.00741407,2664.4,2664.3,7.30333]
[1727423899455,0.00741407,2664.4,2664.1,3.75349]
[1727423900800,0.00741407,2664.4,2664.2,3.75344]
[1727423902601,0.00741407,2664.4,2664.3,3.75333]
[1727423903098,0.00741407,2664.4,2664.3,4.30333]
[1727423904002,0.00741407,2664.4,2664.1,3.75349]
[1727423904482,0.00741407,2664.4,2664.2,0.55]
[1727423904687,0.00741407,2664.4,2664.2,4.30345]
[1727423906663,0.00741407,2664.4,2664.3,3.75333]
[1727423906864,0.00741407,2664.4,2664.3,4.30333]
[1727423918125,0.00741407,2664.4,2664.3,7.30333]
[1727423923619,0.00741407,2664.4,2664.3,8.06763]
[1727423925234,0.00741407,2664.4,2664.3,7.30333]
[1727423935963,0.00741407,2664.4,2664.3,9.04721391]
[1727423936957,0.00741407,2664.4,2664.3,7.30333]
[1727423937461,0.00741407,2664.4,2664.3,8.65982839]
[1727423942740,0.00741407,2664.4,2664.3,7.30333]
[1727423947275,0.00741407,2664.4,2664.3,3.0]
[1727423947579,0.00741407,2664.4,2664.3,6.75333]
[1727423948438,0.00741407,2664.4,2664.3,7.30333]
[1727423960642,0.00741407,2664.4,2664.3,4.30333]
[1727423960938,0.7881,2664.3,2664.0,3.75368]
[1727423961143,0.7881,2664.3,2664.1,3.75361]
[1727423961451,0.00741407,2664.2,2664.1,4.30361]
[1727423962754,0.00741407,2664.2,2664.1,3.75361]
[1727423965222,0.00741407,2664.2,2664.0,3.75368]
[1727423965421,0.00741407,2664.2,2664.1,3.75361]
[1727423966059,0.00741407,2664.2,2664.0,3.75367]
[1727423966230,0.00741407,2664.2,2664.0,7.50733]
[1727423966436,0.00741407,2664.2,2664.1,3.75361]
[1727423969468,6.53641407,2664.2,2662.5,0.12354539]
[1727423969673,0.7746,2663.8,2662.8,3.75537]
[1727423969957,0.00741407,2662.9,2662.5,3.75585]
[1727423970378,0.00741407,2662.9,2662.7,3.75548]
[1727423970538,0.00741407,2662.9,2662.8,0.375548]
[1727423970734,0.00741407,2662.9,2662.8,4.130988]
[1727423970938,0.00741407,2662.9,2662.8,0.925548]
[1727423971379,0.00741407,2662.9,2662.6,0.55]
[1727423971579,0.00741407,2662.9,2662.6,4.3057]
[1727423972065,0.00741407,2662.9,2662.8,0.55]
[1727423972494,0.00741407,2662.9,2662.4,0.04455987]
[1727423972495,0.76161407,2662.9,2662.4,0.04455987]
[1727423973779,0.76161407,2662.9,2662.5,0.55]
[1727423976045,0.00741407,2662.9,2662.5,0.55]
[1727423976374,0.79751407,2663.3,2662.7,0.55]
[1727423978444,0.00741407,2662.8,2662.7,0.55]
[1727423978683,0.00741407,2663.2,2662.7,0.55]
[1727423982353,0.00741407,2663.0,2662.7,0.55]
[1727423982552,0.00741407,2662.8,2662.7,0.55]
[1727423982758,0.00741407,2663.0,2662.7,0.55]
[1727423982959,0.00741407,2663.0,2662.7,1.433012]
[1727423984391,0.00741407,2663.0,2662.7,0.55]
[1727423987310,0.00741407,2662.8,2662.7,0.55]
[1727423987661,0.00741407,2663.1,2662.7,0.55]
[1727423987961,0.79751407,2663.3,2662.7,0.55]
[1727423988266,0.7901,2663.3,2662.7,0.55]
[1727423988474,0.7901,2663.3,2662.6,0.55]
[1727423988660,0.00741407,2663.1,2662.6,0.55]
[1727423988855,0.7901,2663.3,2662.6,0.55]
[1727423991696,0.7901,2663.3,2662.5,0.55]
[1727423991995,0.8326,2663.1,2662.5,0.55]
[1727423992596,0.00741407,2662.8,2662.5,0.55]
[1727423992902,0.00741407,2662.8,2662.4,0.04455987]
[1727423993122,0.00741407,2662.6,2662.4,0.04455987]
[1727423994355,0.00741407,2662.6,2662.5,0.55]
[1727423996268,0.8043,2662.7,2662.5,0.55]
[1727423999005,0.00741407,2662.6,2662.5,0.55]
[1727423999169,0.81171407,2662.7,2662.5,0.55]
[1727424000582,1.26842348,2662.7,2662.4,0.04455987]
[1727424000929,0.81171407,2662.7,2662.4,0.04455987]
[1727424004207,0.8043,2662.7,2662.4,0.04455987]
[1727424004523,0.00741407,2662.6,2662.5,0.55]
[1727424008951,0.00741407,2662.6,2662.4,0.04455987]
[1727424010854,0.8156,2662.5,2662.4,0.04455987]
[1727424011065,0.8156,2662.5,2662.4,0.59455987]
[1727424011409,0.8156,2662.5,2662.4,0.04455987]
[1727424011945,0.8156,2662.5,2660.7,1.56840659]
[1727424011946,0.7871,2662.5,2660.7,1.56840659]
[1727424012113,0.00741407,2662.6,2661.0,3.75788]
[1727424012114,0.7871,2661.9,2661.0,3.75788]
[1727424012485,0.00741407,2661.1,2661.0,3.75788]
[1727424013552,0.7871,2661.4,2661.1,3.75784]
[1727424013754,0.7871,2661.4,2661.2,0.55]
[1727424014258,0.81841407,2661.6,2661.2,0.55]
[1727424014550,0.811,2661.6,2661.2,0.55]
[1727424014759,0.00741407,2661.9,2661.4,0.55]
[1727424014909,0.811,2662.1,2661.4,0.62513535]
[1727424015329,0.811,2662.1,2661.6,0.55]
[1727424015770,0.7648,2662.3,2661.6,0.62391492]
[1727424015941,0.7648,2662.3,2661.6,0.54878075]
[1727424016279,0.7648,2662.3,2661.7,0.82662798]
[1727424016479,0.7592,2662.6,2662.0,3.75645]
[1727424016664,0.7592,2662.6,2661.9,3.75658]
[1727424016665,0.7592,2662.6,2662.1,3.75633]
[1727424017270,0.7592,2662.6,2662.1,4.55773]
[1727424017975,0.7592,2662.6,2662.2,4.30628]
[1727424018669,3.75522,2663.0,2662.2,4.30628]
[1727424018670,0.7527,2662.9,2662.2,4.30628]
[1727424018974,1.93423341,2662.9,2662.2,0.55]
[1727424019473,5.68954341,2662.9,2662.2,0.55]
[1727424021984,1.93423341,2662.9,2662.2,4.30626]
[1727424022340,1.93423341,2662.9,2662.2,0.55]
[1727424023069,1.93423341,2662.9,2662.2,4.3062]
[1727424023646,1.93423341,2662.9,2662.2,0.55]
[1727424023858,5.68954341,2662.9,2662.2,0.55]
[1727424024085,0.56895434,2662.8,2662.2,0.55]
[1727424024290,4.32439434,2662.8,2662.2,0.55]
[1727424025487,0.56895434,2662.8,2662.2,0.55]
[1727424027188,4.32449434,2662.8,2662.2,0.55]
[1727424027391,3.7556,2662.7,2662.2,0.55]
[1727424027563,0.56895434,2662.8,2662.2,0.55]
[1727424029687,0.00741407,2662.4,2662.2,0.55]
[1727424030606,0.00741407,2662.4,2662.2,4.30629]
[1727424030770,0.56895434,2662.8,2662.2,4.30629]
[1727424032769,1.93423341,2662.9,2662.2,4.30629]
[1727424033297,1.93423341,2662.9,2662.2,8.06249]
[1727424033472,1.93423341,2662.9,2662.2,4.3062]
[1727424034315,0.8319,2663.3,2662.8,1.3587]
[1727424035508,3.75502,2663.1,2662.7,0.55]
[1727424035668,0.00741407,2662.9,2662.5,0.55]
[1727424035872,0.00741407,2662.7,2662.5,0.55]
[1727424036203,0.00741407,2663.1,2662.5,0.55]
[1727424036507,0.84231748,2663.1,2662.5,0.55]
[1727424036875,0.84231748,2663.1,2662.5,4.30584]
[1727424039299,0.84231748,2663.1,2662.5,0.55]
[1727424039806,0.84231748,2663.1,2662.5,4.30578]
[1727424040011,0.8319,2663.3,2662.7,4.30557]
[1727424040311,0.8168,2663.5,2662.7,8.06104]
[1727424040819,0.8168,2663.5,2662.8,3.75543]
[1727424040978,0.8168,2663.5,2662.9,0.55]
[1727424041374,4.57128,2663.5,2662.8,0.55]
[1727424044714,3.75461,2663.4,2662.8,0.55]
[1727424044918,3.75475,2663.3,2662.7,0.55]
[1727424045093,4.211891,2663.3,2662.7,0.55]
[1727424045501,0.457141,2663.3,2662.7,0.55]
[1727424046087,0.457141,2663.3,2662.6,0.7855]
[1727424046088,3.75527,2663.0,2662.6,0.7855]
[1727424046288,3.75527,2663.0,2662.4,0.7789]
[1727424046492,0.375527,2662.9,2662.4,0.7789]
[1727424046992,3.75503,2663.1,2662.4,0.7789]
[1727424048999,4.56912,2663.2,2662.4,0.7789]
[1727424049324,0.8142,2663.2,2662.5,0.55]
[1727424049514,0.8142,2663.2,2662.5,4.30586]
[1727424049721,0.50334951,2663.1,2662.5,0.55]
[1727424050031,3.75516,2663.0,2662.5,0.55]
[1727424050226,0.50334951,2663.1,2662.5,0.55]
[1727424050591,4.25846951,2663.1,2662.4,0.7789]
[1727424050792,0.50724395,2663.0,2662.4,0.7789]
[1727424051646,0.50724395,2663.0,2662.5,4.30585]
[1727424051925,0.8142,2663.2,2662.5,4.30585]
[1727424052294,0.8142,2663.2,2662.7,0.55]
[1727424053097,0.00741407,2663.3,2662.7,0.55]
[1727424053445,0.00741407,2663.3,2662.9,0.55]
[1727424053602,0.7729,2663.6,2662.9,0.55]
[1727424053933,0.7729,2663.6,2663.0,0.8249]
[1727424053934,1.105436,2663.5,2663.0,0.8249]
[1727424056352,7.3,2663.7,2663.1,0.55]
[1727424056691,11.05379,2664.0,2663.4,0.803]
[1727424056952,5.44039003,2664.0,2663.4,0.803]
[1727424057240,3.75379,2664.0,2663.4,0.803]
[1727424057441,3.75379,2664.0,2663.5,0.55]
[1727424058522,3.75379,2664.0,2663.4,0.803]
[1727424058859,3.75398,2663.9,2663.4,0.803]
[1727424059919,8.25877,2664.1,2663.4,0.803]
[1727424060125,4.579647,2664.0,2663.4,0.803]
[1727424060548,0.825877,2664.0,2663.4,0.803]
[1727424061228,3.75401,2663.9,2663.4,0.803]
[1727424061833,0.825877,2664.0,2663.4,0.803]
[1727424062262,3.75367,2664.1,2663.4,0.803]
[1727424063427,3.75367,2664.1,2663.5,0.55]
[1727424064120,3.75367,2664.1,2663.4,0.7924]
[1727424064335,3.75367,2664.1,2663.6,0.7583]
[1727424067035,3.75379,2664.0,2663.6,0.7583]
[1727424067236,4.504536,2664.0,2663.6,0.7583]
[1727424068337,3.75379,2664.0,2663.6,0.7583]
[1727424068969,3.75393,2663.9,2663.6,0.7583]
[1727424075993,3.75445,2663.5,2663.1,0.7553]
[1727424076180,3.75497,2663.2,2662.8,0.7553]
[1727424077300,4.50742,2663.4,2662.8,0.7553]
[1727424077301,3.7547,2663.4,2662.8,0.7553]
[1727424077591,3.7547,2663.4,2662.9,0.55]
[1727424077972,3.75474,2663.3,2662.9,0.55]
[1727424079986,3.75461,2663.4,2662.9,0.55]
[1727424082280,4.935219,2663.5,2662.6,3.75572]
[1727424082281,11.05424,2663.7,2663.0,0.7533]
[1727424082482,11.05424,2663.7,2662.7,4.30548]
[1727424082483,11.05427,2663.7,2663.2,0.7533]
[1727424082891,3.75365,2664.1,2663.3,0.55]
[1727424083110,4.97579,2664.0,2663.4,0.8071]
[1727424083420,7.3,2664.2,2663.6,0.8071]
[1727424083709,11.05349,2664.2,2663.7,0.55]
[1727424084482,11.05349,2664.2,2663.8,0.7756]
[1727424086183,3.75329,2664.4,2663.8,0.7756]
[1727424087969,3.75329,2664.4,2663.9,0.55]
[1727424088399,3.75312,2664.5,2663.9,0.55]
[1727424088573,3.76083407,2664.3,2663.9,0.55]
[1727424089607,0.00741407,2664.3,2664.0,0.795]
[1727424089819,0.00741407,2664.3,2664.2,5.09847]
[1727424090019,0.00741407,2664.3,2664.2,9.53287061]
[1727424090311,0.00741407,2664.3,2664.2,5.67082359]
[1727424090477,0.00741407,2664.3,2664.2,5.74587775]
[1727424096094,0.00741407,2664.3,2664.2,5.67082359]
[1727424096402,0.00741407,2664.3,2664.2,1.91735359]
[1727424097913,0.00741407,2664.3,2664.2,5.67082359]
[1727424101316,0.00741407,2664.3,2664.2,5.74587808]
[1727424102319,0.00741407,2664.3,2664.2,9.53286853]
[1727424102517,0.00741407,2664.3,2664.2,12.45781404]
[1727424104017,0.00741407,2664.3,2664.2,8.67082359]
[1727424109421,0.00741407,2664.3,2664.2,12.45781404]
[1727424112707,7.3,2665.8,2665.4,0.55]
[1727424112914,0.8053,2665.9,2665.4,0.55]
[1727424115114,0.8053,2665.9,2665.4,0.62502331]
[1727424115323,0.8053,2665.9,2665.4,0.55]
[1727424115482,0.8053,2665.9,2665.4,1.055229]
[1727424117781,4.55637,2665.9,2665.4,0.55]
[1727424117982,0.8053,2665.9,2665.4,0.55]
[1727424120129,4.55641,2665.9,2665.4,0.55]
[1727424121807,0.8053,2665.9,2665.4,0.55]
[1727424122938,4.53027,2666.2,2665.6,0.55]
[1727424123141,0.7796,2666.2,2665.8,0.55]
[1727424123525,0.758,2666.4,2665.8,0.55]
[1727424123839,1.208824,2666.4,2665.8,0.55]
[1727424125232,4.959204,2666.4,2665.8,0.55]
[1727424128155,3.75052,2666.3,2665.8,0.55]
[1727424133769,4.959204,2666.4,2665.8,0.55]
[1727424133925,3.75051,2666.3,2665.8,0.55]
[1727424135446,3.75079,2666.1,2665.8,0.55]
[1727424135642,3.75079,2666.1,2665.3,7.34]
[1727424135643,3.75118,2665.9,2665.4,0.8295]
[1727424136034,3.75118,2665.9,2665.5,0.55]
[1727424136267,0.7688,2666.0,2665.4,0.9045218]
[1727424136559,3.75084,2666.1,2665.4,1.7214718]
[1727424137962,3.75084,2666.1,2665.5,0.55]
[1727424138127,3.75084,2666.1,2665.7,0.55]
[1727424138319,4.56175,2666.2,2665.8,0.07501709]
[1727424138522,5.4380634,2666.2,2665.8,0.07501709]
[1727424138718,5.4380634,2666.2,2665.7,0.55]
[1727424139024,3.75056,2666.3,2665.9,0.55]
[1727424139224,4.55268,2666.5,2665.9,0.55]
[1727424139531,3.75054,2666.3,2666.1,0.55]
[1727424145685,0.8024,2666.5,2666.1,0.55]
[1727424145686,3.75038,2666.4,2666.1,0.55]
[1727424147466,3.75055,2666.3,2666.1,0.55]
[1727424147677,4.580679,2666.4,2666.1,0.55]
[1727424148544,3.75038,2666.4,2666.1,0.55]
[1727424150577,3.75014,2666.6,2666.1,0.55]
[1727424150777,3.75024,2666.5,2666.1,0.55]
[1727424154940,4.57448,2666.7,2666.1,0.55]
[1727424156045,3.7501,2666.6,2666.1,0.55]
[1727424158485,3.74988,2666.8,2666.3,0.55]
[1727424158660,3.75009,2666.6,2666.3,0.55]
[1727424165523,7.953808,2666.8,2666.3,0.55]
[1727424167581,4.203898,2666.8,2666.3,0.55]
[1727424167867,0.7903,2666.9,2666.3,0.55]
[1727424168082,7.3,2667.1,2666.5,0.55]
[1727424168286,3.74935,2667.2,2666.7,0.55]
[1727424169257,3.74898,2667.4,2666.8,0.807]
[1727424169482,3.74898,2667.4,2666.9,0.55]
[1727424169797,5.32189787,2667.4,2666.9,0.55]
[1727424170410,3.8599987,2667.6,2667.2,0.7963]
[1727424170704,3.8599987,2667.6,2667.3,0.55]
[1727424171080,0.1112687,2667.6,2667.5,0.55]
[1727424172588,4.24602957,2667.6,2667.4,0.8124]
[1727424172787,4.24602957,2667.6,2666.9,0.7585]
[1727424172990,4.24602957,2667.6,2667.0,0.55]
[1727424173895,4.24592957,2667.6,2667.0,0.55]
[1727424175109,4.24592957,2667.6,2667.2,0.55]
[1727424175296,3.8599487,2667.6,2667.2,0.55]
[1727424176395,0.1112687,2667.6,2667.2,0.55]
[1727424176614,0.1112687,2667.6,2667.3,0.8331]
[1727424177032,0.1112687,2667.6,2667.3,1.3831]
[1727424177271,0.1112687,2667.6,2667.5,0.55]
[1727424177426,0.1112687,2667.6,2667.5,1.3831]
[1727424179933,0.1112687,2667.6,2667.5,1.82141]
[1727424182677,0.1112687,2667.6,2667.5,1.3831]
[1727424184883,0.1112687,2667.6,2667.5,1.45806343]
[1727424185585,0.1112687,2667.6,2667.5,1.3831]
[1727424187485,0.1112687,2667.6,2667.5,1.45806347]
[1727424188202,0.1112687,2667.6,2667.5,8.20688347]
[1727424188406,0.1112687,2667.6,2667.5,9.50166666]
[1727424189594,0.01391439,2669.3,2668.5,0.7697]
[1727424189595,3.74653,2669.2,2668.5,0.7697]
[1727424189806,3.74653,2669.2,2668.6,0.55]
[1727424189807,3.74681,2669.0,2668.6,0.55]
[1727424190163,3.74704,2668.8,2668.3,0.7697]
[1727424190410,0.7651,2669.1,2668.4,0.55]
[1727424190899,0.01391439,2669.3,2668.8,0.55]
[1727424191200,0.01391439,2669.3,2668.8,0.62493212]
[1727424191405,0.01391439,2669.3,2669.0,0.55]
[1727424191616,0.01391439,2669.3,2669.0,0.62492334]
[1727424191941,0.01391439,2669.3,2669.0,0.55]
[1727424192883,0.01391439,2669.3,2669.2,0.55]
[1727424194466,0.01391439,2669.3,2669.2,1.061144]
[1727424195112,0.01391439,2669.3,2669.2,1.835144]
[1727424195465,0.01391439,2669.3,2669.2,1.324]
[1727424195742,0.01391439,2669.3,2669.2,1.3989093]
[1727424195902,0.01391439,2669.3,2669.2,8.07044]
[1727424196408,0.01391439,2669.3,2669.2,1.324]
[1727424198601,0.01391439,2669.3,2669.2,12.21127975]
[1727424198801,0.01391439,2669.3,2669.2,13.81455652]
[1727424200119,0.01391439,2669.3,2669.2,10.04961677]
[1727424202014,0.01391439,2669.3,2669.2,10.19972877]
[1727424203043,0.01391439,2669.3,2669.2,1.75338877]
[1727424203248,0.01391439,2669.3,2669.2,0.07491296]
[1727424203414,0.01391439,2669.3,2669.2,3.82135296]
[1727424203615,0.01391439,2669.3,2669.2,6.82135296]
[1727424203808,0.01391439,2669.3,2669.2,11.38419271]
[1727424204005,0.01391439,2669.3,2669.2,12.01132205]
[1727424204327,0.01391439,2669.3,2669.2,13.63970906]
[1727424204535,0.01391439,2669.3,2669.2,14.18970906]
[1727424204920,0.01391439,2669.3,2669.2,15.07099344]
[1727424219223,0.01391439,2669.3,2669.2,10.80066931]
[1727424219751,0.01391439,2669.3,2669.2,14.18970906]
[1727424220049,0.01391439,2669.3,2669.2,14.56560906]
[1727424220427,0.01391439,2669.3,2669.2,12.16117032]
[1727424220840,0.01391439,2669.3,2669.2,12.53707032]
[1727424223261,0.00830401,2669.5,2669.4,0.3759]
[1727424223445,0.00830401,2669.5,2669.4,9.40846101]
[1727424224161,0.00830401,2669.5,2669.4,10.02487038]
[1727424229728,0.00830401,2669.5,2669.4,7.67206]
[1727424229924,0.00830401,2669.5,2669.4,5.49408058]
[1727424230160,0.00830401,2669.5,2669.2,0.08563293]
[1727424230632,0.8014,2669.4,2669.2,0.08563293]
[1727424232264,0.8014,2669.4,2669.3,0.55]
[1727424233176,0.8014,2669.4,2669.2,0.08563293]
[1727424234455,0.8014,2669.4,2669.3,0.55]
[1727424242012,1.2569584,2669.4,2669.3,0.55]
[1727424243304,0.8014,2669.4,2669.3,0.55]
[1727424245202,0.7732,2669.3,2668.7,0.55]
[1727424245563,0.7732,2669.3,2668.1,3.74794]
[1727424245807,0.00830401,2669.5,2668.1,3.74794]
[1727424245808,0.7512,2669.0,2668.1,3.74794]
[1727424246567,0.7889,2668.9,2668.1,3.74789]
[1727424246868,0.7889,2668.9,2668.3,0.55]
[1727424248379,0.8004,2669.4,2668.5,2.28640101]
[1727424248578,0.8004,2669.4,2668.8,3.55]
[1727424248794,0.8004,2669.4,2669.0,0.55]
[1727424250313,0.8004,2669.4,2669.0,1.3381]
[1727424250485,0.8004,2669.4,2669.2,0.55]
[1727424251072,0.8004,2669.4,2669.1,0.55]
[1727424255143,0.00830401,2669.5,2669.1,5.3613213]
[1727424255642,0.00830401,2669.5,2669.4,0.55]
[1727424255862,0.00830401,2669.5,2669.4,0.62490884]
[1727424256040,0.00830401,2669.5,2669.4,4.46076399]
[1727424256244,0.00830401,2669.5,2669.3,0.55]
[1727424256562,0.796,2669.4,2669.3,0.55]
[1727424257953,0.00830401,2669.5,2669.3,0.55]
[1727424259065,0.00830401,2669.5,2669.4,0.62490966]
[1727424260458,0.00830401,2669.5,2669.3,0.55]
[1727424260658,0.00830401,2669.5,2669.3,1.3643929]
[1727424261761,0.7919,2669.4,2669.3,1.3643929]
[1727424261962,0.7919,2669.4,2669.0,0.55]
[1727424263150,0.7919,2669.4,2669.0,1.3368]
[1727424263348,0.7919,2669.4,2669.0,5.08348]
[1727424263563,0.7919,2669.4,2669.2,0.55]
[1727424267259,0.00830401,2669.5,2669.2,0.55]
[1727424268394,0.00830401,2669.5,2669.0,0.55]
[1727424269238,0.00830401,2669.5,2669.1,3.0]
[1727424269445,0.00830401,2669.5,2669.2,1.3653]
[1727424269778,0.00830401,2669.5,2669.0,0.55]
[1727424269931,0.00830401,2669.5,2669.2,0.55]
[1727424275391,0.00830401,2669.5,2669.4,0.55]
[1727424279991,0.00830401,2669.5,2669.4,1.3436]
[1727424280294,0.00830401,2669.5,2669.4,1.36648244]
[1727424287499,0.83270401,2669.5,2669.4,0.55]
[1727424287665,0.83270401,2669.5,2669.1,3.0]
[1727424289028,0.83270401,2669.5,2669.2,0.55]
[1727424292113,0.83270401,2669.5,2669.1,0.55]
[1727424296190,0.83270401,2669.5,2669.2,3.0]
[1727424296395,0.83270401,2669.5,2669.3,0.55]
[1727424297697,0.83270401,2669.5,2669.1,4.29656]
[1727424297898,0.83270401,2669.5,2669.3,0.55]
[1727424298192,0.83270401,2669.5,2669.1,0.55]
[1727424299313,0.83270401,2669.5,2669.1,4.29657]
[1727424299519,0.83270401,2669.5,2669.3,0.55]
[1727424309035,0.83270401,2669.5,2669.2,0.55]
[1727424314769,0.83270401,2669.5,2668.3,1.56840659]
[1727424314770,0.8298,2669.1,2668.3,1.56840659]
[1727424314949,0.83721407,2669.0,2668.5,3.74741]
[1727424315116,0.8298,2669.0,2668.5,3.74741]
[1727424315934,0.8298,2669.0,2668.6,3.74726]
[1727424316261,0.8298,2669.0,2668.5,3.7474]